bitfinex/quotes_ETHUSD_20230111
["timestamp","ask_amount","ask_price","bid_price","bid_amount"]
[1673433312631,1e-08,1336.6,1336.5,26.18326047]
[1673433314308,1e-08,1336.6,1336.5,26.18553587]
[1673433317284,1e-08,1336.6,1336.5,30.82626434]
[1673433321187,1e-08,1336.6,1336.5,31.94549393]
[1673433321414,1e-08,1336.6,1336.5,30.82626434]
[1673433324938,1e-08,1336.6,1336.5,31.94549393]
[1673433325286,1e-08,1336.7,1336.5,31.94549393]
[1673433325492,1e-08,1336.7,1336.6,25.63952939]
[1673433325655,0.00200001,1336.7,1336.6,25.6982081]
[1673433325869,1e-08,1336.7,1336.6,25.7002081]
[1673433327173,1e-08,1336.7,1336.6,27.55643985]
[1673433331071,1e-08,1336.7,1336.6,28.67566944]
[1673433335233,1e-08,1336.7,1336.6,31.46010652]
[1673433335427,1e-08,1336.7,1336.6,28.67566944]
[1673433335640,1e-08,1336.7,1336.6,25.48112005]
[1673433338379,1e-08,1336.7,1336.6,32.67814929]
[1673433338701,0.02172673,1336.8,1336.7,24.81032999]
[1673433338702,0.25172673,1336.8,1336.7,24.81032999]
[1673433338911,0.25172673,1336.8,1336.7,30.64394613]
[1673433339345,0.02172673,1336.8,1336.7,33.42838321]
[1673433339560,0.02172673,1336.8,1336.7,38.81640193]
[1673433340625,0.02172673,1336.8,1336.7,43.21197532]
[1673433340955,0.08969986,1336.9,1336.7,43.21197532]
[1673433341110,0.08969986,1336.9,1336.8,13.51032366]
[1673433341321,0.08969986,1336.9,1336.8,32.11001797]
[1673433341554,9.86e-06,1336.9,1336.8,44.83350811]
[1673433341783,30.03845919,1337.1,1336.9,2.5]
[1673433341993,30.03845919,1337.1,1337.0,29.91772]
[1673433341994,0.17845919,1337.1,1337.0,29.91772]
[1673433342219,0.17845919,1337.1,1337.0,31.83463046]
[1673433342220,0.11245919,1337.1,1337.0,31.83463046]
[1673433345029,0.11245919,1337.1,1337.0,31.83400051]
[1673433345359,0.6932383,1337.2,1337.0,33.72071479]
[1673433345580,4.49089894,1337.2,1337.0,33.72071479]
[1673433346187,0.6932383,1337.2,1337.0,33.72071479]
[1673433346436,0.6932383,1337.2,1337.0,38.10787633]
[1673433349486,30.09007062,1337.4,1337.2,2.5]
[1673433349645,30.09007062,1337.4,1337.3,25.04825]
[1673433349646,0.23007062,1337.4,1337.3,25.04825]
[1673433349857,0.16407062,1337.4,1337.3,25.10892871]
[1673433351115,6.2e-07,1337.4,1337.3,31.16710887]
[1673433351324,6.2e-07,1337.4,1337.3,34.27367871]
[1673433354372,6.2e-07,1337.4,1337.3,32.58667871]
[1673433354834,6.2e-07,1337.4,1337.3,34.27367871]
[1673433355079,6.2e-07,1337.4,1337.3,38.64485887]
[1673433355224,6.2e-07,1337.4,1337.3,34.27367871]
[1673433356999,6.2e-07,1337.4,1337.3,36.95785887]
[1673433357726,6.2e-07,1337.4,1337.3,32.58667871]
[1673433358181,6.2e-07,1337.4,1337.3,36.95785887]
[1673433358615,6.2e-07,1337.4,1337.3,32.58667871]
[1673433358997,0.19604048,1337.5,1337.4,14.95637938]
[1673433359208,0.19604048,1337.5,1337.4,22.49424809]
[1673433359422,0.42604048,1337.5,1337.4,22.49424809]
[1673433365212,1e-08,1337.5,1337.4,22.49424809]
[1673433365421,0.0033982,1337.6,1337.4,22.49424809]
[1673433365648,3.80105884,1337.6,1337.4,22.49424809]
[1673433366258,3.80105884,1337.6,1337.4,23.84630339]
[1673433367334,3.80105884,1337.6,1337.4,22.49424809]
[1673433371857,5.71466064,1337.5,1337.4,22.49424809]
[1673433372176,5.78066064,1337.5,1337.4,22.49424809]
[1673433376008,5.78066064,1337.5,1337.4,22.49224809]
[1673433376227,5.78066064,1337.5,1337.4,22.49424809]
[1673433377957,0.296,1337.5,1337.4,26.3462079]
[1673433378128,0.23,1337.5,1337.4,28.20125111]
[1673433378338,0.23,1337.5,1337.4,30.98379778]
[1673433379100,0.23,1337.5,1337.4,28.20125111]
[1673433379305,1.6903982,1337.6,1337.4,28.20125111]
[1673433379484,5.48805884,1337.6,1337.4,25.27679761]
[1673433379695,5.55405884,1337.6,1337.4,25.27679761]
[1673433380221,5.55405884,1337.6,1337.4,23.61197126]
[1673433380433,3.86705884,1337.6,1337.4,26.39452078]
[1673433380809,36.0343712,1337.7,1337.5,1.85501195]
[1673433380810,31.6103712,1337.7,1337.5,1.85501195]
[1673433380952,0.0703712,1337.7,1337.6,3.66822437]
[1673433381158,0.0043712,1337.7,1337.6,35.42751632]
[1673433381419,0.0043712,1337.7,1337.6,35.48819503]
[1673433382012,0.0043712,1337.7,1337.6,37.16477978]
[1673433382229,0.0043712,1337.7,1337.6,36.04705661]
[1673433382436,1.2e-06,1337.7,1337.6,37.16093611]
[1673433382679,0.7292749,1337.8,1337.6,37.16093611]
[1673433382893,0.7292749,1337.8,1337.7,27.99763556]
[1673433383067,4.9e-06,1337.8,1337.7,31.95474329]
[1673433385262,38.1487,1338.0,1337.7,31.95474329]
[1673433385473,8.2887,1338.0,1337.8,1.85501195]
[1673433385682,0.066,1338.0,1337.9,29.8976]
[1673433385934,0.23,1338.0,1337.9,29.95827871]
[1673433387406,0.232,1338.0,1337.9,29.95627871]
[1673433387685,0.23,1338.0,1337.9,29.95827871]
[1673433389021,7.39466064,1338.0,1337.9,15.00947871]
[1673433389228,7.46766064,1338.0,1337.9,0.06067871]
[1673433389437,9.96766064,1338.0,1337.9,7.4744]
[1673433389682,9.96766064,1338.0,1337.9,7.53507871]
[1673433389893,7.46766064,1338.0,1337.9,15.00947871]
[1673433391571,11.95766064,1338.0,1337.9,7.53507871]
[1673433392212,11.95766064,1338.0,1337.9,15.00947871]
[1673433392419,11.95766064,1338.0,1337.9,22.48387871]
[1673433395837,5.78066064,1338.0,1337.9,22.48387871]
[1673433396046,1.753,1338.0,1337.9,22.48387871]
[1673433396261,5.32224836,1338.1,1337.9,22.48387871]
[1673433396514,9.119909,1338.1,1337.9,22.48387871]
[1673433397830,0.23,1338.0,1337.9,22.48387871]
[1673433399140,0.23,1338.0,1337.9,24.72495548]
[1673433399518,4.003209,1338.1,1337.9,24.72495548]
[1673433399769,4.003209,1338.1,1337.9,22.48387871]
[1673433399976,5.690209,1338.1,1337.9,22.48387871]
[1673433400145,5.756209,1338.1,1337.9,22.48387871]
[1673433401307,1.95854836,1338.1,1337.9,22.48387871]
[1673433401549,0.20554836,1338.1,1337.9,26.85155139]
[1673433401740,0.20554836,1338.1,1338.0,5.18515514]
[1673433402062,0.20554836,1338.1,1338.0,27.66735385]
[1673433402268,0.20554836,1338.1,1338.0,29.52147975]
[1673433402567,0.20554836,1338.1,1338.0,25.16735385]
[1673433404393,0.21516401,1338.2,1338.0,25.16735385]
[1673433404609,0.21716401,1338.2,1338.1,24.93657539]
[1673433404818,0.21516401,1338.2,1338.1,24.9972541]
[1673433405183,1e-08,1338.2,1338.1,24.9972541]
[1673433407242,2.35880232,1338.4,1338.2,0.002]
[1673433407393,0.05230232,1338.4,1338.3,29.88864]
[1673433407762,0.05230232,1338.4,1338.3,29.94931871]
[1673433409711,0.066,1338.6,1338.4,2.5]
[1673433410049,0.066,1338.6,1338.3,31.27431871]
[1673433410050,0.23087141,1338.7,1338.5,29.88416]
[1673433410263,4.58893205,1338.7,1338.5,29.94483871]
[1673433410447,4.58893205,1338.7,1338.5,32.93932258]
[1673433410448,0.5604,1338.7,1338.5,32.93932258]
[1673433410803,15.63870522,1338.8,1338.5,32.93932258]
[1673433411016,1.288,1338.7,1338.5,32.93932258]
[1673433411326,7.58566064,1338.7,1338.5,29.94483871]
[1673433411536,0.23,1338.6,1338.5,29.94483871]
[1673433411751,0.23,1338.6,1338.5,22.47379871]
[1673433411752,1.568,1338.6,1338.5,22.47379871]
[1673433411989,5.36566064,1338.6,1338.5,7.53171871]
[1673433412145,5.36566064,1338.6,1338.5,0.06067871]
[1673433412146,20.76966064,1338.6,1338.5,0.06067871]
[1673433412358,20.76966064,1338.6,1338.5,7.47104]
[1673433412619,20.76966064,1338.6,1338.5,15.00275871]
[1673433412620,16.972,1338.6,1338.5,15.00275871]
[1673433412774,16.972,1338.6,1338.5,15.05505592]
[1673433413242,25.27403513,1338.6,1338.5,0.11297592]
[1673433413455,25.83453513,1338.6,1338.5,0.64516284]
[1673433413625,26.65173671,1338.6,1338.5,0.64516284]
[1673433415662,27.93973671,1338.6,1338.5,0.64516284]
[1673433416277,35.41022671,1338.6,1338.5,0.64516284]
[1673433417534,27.93973671,1338.6,1338.5,0.64516284]
[1673433417764,27.93773671,1338.6,1338.5,0.64516284]
[1673433419389,27.93773671,1338.6,1338.5,8.11620284]
[1673433419390,25.76716064,1338.6,1338.5,8.11620284]
[1673433419601,25.76716064,1338.6,1338.5,0.70584155]
[1673433419848,25.76716064,1338.6,1338.5,0.64516284]
[1673433420867,24.25316064,1338.6,1338.5,15.58724284]
[1673433421190,24.25316064,1338.6,1338.5,15.64792155]
[1673433421721,23.69266064,1338.6,1338.5,15.64792155]
[1673433422792,22.35366064,1338.6,1338.5,15.64792155]
[1673433422995,22.58366064,1338.6,1338.5,8.17688155]
[1673433423188,22.58366064,1338.6,1338.5,15.64792155]
[1673433423403,22.58366064,1338.6,1338.5,8.17688155]
[1673433425203,22.58366064,1338.6,1338.5,15.64792155]
[1673433426582,22.58366064,1338.6,1338.5,23.11896155]
[1673433427493,18.09366064,1338.6,1338.5,23.11896155]
[1673433429606,18.09366064,1338.6,1338.5,15.64792155]
[1673433430176,18.09366064,1338.6,1338.5,23.11896155]
[1673433430537,18.09366064,1338.6,1338.5,15.64792155]
[1673433430991,18.09366064,1338.6,1338.5,23.11896155]
[1673433431804,18.09366064,1338.6,1338.5,15.64792155]
[1673433432095,18.09366064,1338.6,1338.5,23.11896155]
[1673433434541,14.296,1338.6,1338.5,26.17796771]
[1673433435204,14.066,1338.6,1338.5,26.17796771]
[1673433436368,14.296,1338.6,1338.5,23.11896155]
[1673433437375,14.296,1338.6,1338.5,23.11588162]
[1673433438870,14.252,1338.6,1338.5,23.11588162]
[1673433440414,0.296,1338.6,1338.5,23.11588162]
[1673433440630,0.23,1338.6,1338.5,23.11588162]
[1673433442465,1.35222412,1338.6,1338.5,23.11588162]
[1673433443306,5.14988476,1338.6,1338.5,23.11588162]
[1673433443476,5.21588476,1338.6,1338.5,15.64284162]
[1673433443830,4.09366064,1338.6,1338.5,15.64484162]
[1673433444004,4.02766064,1338.6,1338.5,23.11588162]
[1673433444217,6.48588476,1338.6,1338.5,15.64484162]
[1673433444426,6.55188476,1338.6,1338.5,23.11588162]
[1673433444982,6.55188476,1338.6,1338.5,15.64484162]
[1673433445142,14.05182202,1338.6,1338.5,0.70276162]
[1673433445351,15.4295979,1338.6,1338.5,0.64208291]
[1673433445563,16.80588939,1338.6,1338.5,0.64208291]
[1673433445888,17.36638939,1338.6,1338.5,0.64208291]
[1673433446299,27.63622417,1338.6,1338.5,0.64208291]
[1673433446780,41.63622417,1338.6,1338.5,0.64208291]
[1673433447083,34.16573417,1338.6,1338.5,0.64208291]
[1673433447279,34.18010866,1338.6,1338.5,0.64208291]
[1673433448104,30.5635623,1338.6,1338.5,0.64208291]
[1673433448329,33.36290708,1338.6,1338.5,0.64208291]
[1673433448545,30.5635623,1338.6,1338.5,0.64208291]
[1673433449597,34.18010866,1338.6,1338.5,0.64208291]
[1673433450248,60.79399909,1338.6,1338.5,0.64208291]
[1673433450450,53.3215495,1338.6,1338.5,0.64208291]
[1673433450656,45.85106539,1338.6,1338.5,0.64208291]
[1673433450870,43.05367431,1338.6,1338.5,0.64208291]
[1673433451234,45.85038131,1338.6,1338.5,0.64208291]
[1673433452498,46.41206003,1338.6,1338.5,0.64208291]
[1673433453692,43.05367431,1338.6,1338.5,0.64208291]
[1673433455072,45.8493381,1338.6,1338.5,0.64208291]
[1673433455927,38.3788481,1338.6,1338.5,0.64208291]
[1673433456073,40.61503352,1338.6,1338.5,0.64208291]
[1673433456431,40.61501253,1338.6,1338.5,0.64208291]
[1673433457873,31.13752665,1338.6,1338.5,0.64208291]
[1673433458088,31.99729869,1338.6,1338.5,0.64208291]
[1673433459976,32.22729869,1338.6,1338.5,0.64208291]
[1673433461125,29.99113426,1338.6,1338.5,0.64208291]
[1673433461342,32.22729869,1338.6,1338.5,0.63862301]
[1673433462440,45.49130507,1338.6,1338.5,0.63862301]
[1673433462655,30.55032507,1338.6,1338.5,0.63862301]
[1673433462810,52.6401004,1338.6,1338.5,0.63862301]
[1673433463021,45.1696104,1338.6,1338.5,0.63862301]
[1673433463275,42.37394661,1338.6,1338.5,0.63862301]
[1673433463825,38.02081507,1338.6,1338.5,0.63862301]
[1673433463983,42.37394661,1338.6,1338.5,0.63862301]
[1673433464181,49.84443661,1338.6,1338.5,0.63862301]
[1673433464640,42.37394661,1338.6,1338.5,0.63862301]
[1673433464852,49.84443661,1338.6,1338.5,0.63862301]
[1673433465135,38.02081507,1338.6,1338.5,0.63862301]
[1673433465593,42.37394661,1338.6,1338.5,0.63862301]
[1673433465753,38.02081507,1338.6,1338.5,0.63862301]
[1673433465987,42.37394661,1338.6,1338.5,0.63862301]
[1673433466845,38.02081507,1338.6,1338.5,0.63862301]
[1673433467380,38.01755247,1338.6,1338.5,0.63862301]
[1673433467694,30.54706247,1338.6,1338.5,0.63862301]
[1673433468070,32.22390023,1338.6,1338.5,0.63862301]
[1673433469834,28.39290023,1338.6,1338.5,0.63862301]
[1673433470145,23.46831319,1338.6,1338.5,15.58070301]
[1673433470342,23.46831319,1338.6,1338.5,15.64138172]
[1673433471025,23.46831319,1338.6,1338.5,8.17034172]
[1673433471880,23.69831319,1338.6,1338.5,8.17034172]
[1673433473125,23.69831319,1338.6,1338.5,15.64138172]
[1673433473341,23.69831319,1338.6,1338.5,10.48158889]
[1673433473540,23.69831319,1338.6,1338.5,17.95262889]
[1673433474208,23.69831319,1338.6,1338.5,8.17034172]
[1673433474435,23.69831319,1338.6,1338.5,0.69930172]
[1673433474650,25.37515095,1338.6,1338.5,0.63862301]
[1673433474806,24.2572358,1338.6,1338.5,0.63862301]
[1673433475014,25.37541556,1338.6,1338.5,0.63862301]
[1673433475450,25.37541556,1338.6,1338.5,8.10966301]
[1673433475693,25.37541556,1338.6,1338.5,8.17034172]
[1673433476106,25.37541556,1338.6,1338.5,0.69930172]
[1673433476289,25.37541556,1338.6,1338.5,0.63862301]
[1673433476499,25.37541556,1338.6,1338.5,8.10966301]
[1673433476710,25.37541556,1338.6,1338.5,8.17034172]
[1673433476925,25.37541556,1338.6,1338.5,8.16834172]
[1673433477159,25.37541556,1338.6,1338.5,8.17034172]
[1673433477326,24.2572358,1338.6,1338.5,0.69930172]
[1673433477534,24.2572358,1338.6,1338.5,0.63862301]
[1673433477777,24.2572358,1338.6,1338.5,8.10966301]
[1673433477987,24.2572358,1338.6,1338.5,8.17034172]
[1673433478180,25.37573452,1338.6,1338.5,0.69930172]
[1673433478394,24.2572358,1338.6,1338.5,8.10966301]
[1673433478586,24.2572358,1338.6,1338.5,0.69930172]
[1673433478795,24.2572358,1338.6,1338.5,0.63862301]
[1673433479486,26.49340023,1338.6,1338.5,0.63862301]
[1673433480416,25.5842358,1338.6,1338.5,0.63862301]
[1673433480583,27.47156247,1338.6,1338.5,0.63862301]
[1673433481111,33.09480969,1338.6,1338.5,0.63862301]
[1673433481328,57.37958935,1338.6,1338.5,0.63862301]
[1673433481674,57.37958935,1338.6,1338.5,0.48174529]
[1673433481675,54.02120363,1338.6,1338.5,0.48174529]
[1673433482806,55.34920363,1338.6,1338.5,0.48174529]
[1673433483004,59.28982971,1338.6,1338.5,0.48174529]
[1673433484049,67.16582971,1338.6,1338.5,0.48174529]
[1673433484262,14.94432,1338.3,1338.1,9.26517871]
[1673433484523,26.09400235,1338.2,1338.1,0.06067871]
[1673433484871,26.09400235,1338.2,1338.0,10.5016]
[1673433484872,6.99,1338.1,1338.0,0.06067871]
[1673433485044,9.70232883,1338.1,1337.9,22.48341871]
[1673433485361,5.67466819,1338.1,1338.0,7.47384]
[1673433485578,5.90466819,1338.1,1338.0,7.53451871]
[1673433485733,12.21670332,1338.1,1338.0,0.06067871]
[1673433485945,12.21670332,1338.1,1337.9,7.47431]
[1673433486257,22.51766064,1338.0,1337.9,0.06067871]
[1673433486500,22.51766064,1338.0,1337.8,16.76865783]
[1673433486501,22.58366064,1338.0,1337.8,15.03082654]
[1673433486730,3.79766064,1337.9,1337.8,22.50551654]
[1673433486887,2.04935888,1337.9,1337.8,22.50551654]
[1673433488467,2.04935888,1337.9,1337.8,27.97144524]
[1673433490819,0.23,1337.9,1337.8,30.75319562]
[1673433493194,0.23,1337.9,1337.8,27.97144524]
[1673433494199,0.23,1337.9,1337.8,30.75316473]
[1673433494377,0.23,1337.9,1337.8,27.97144524]
[1673433494556,0.23,1337.9,1337.8,30.75316258]
[1673433495425,0.23,1337.9,1337.8,27.97144524]
[1673433497335,0.23,1337.9,1337.8,30.75311418]
[1673433499447,4.49,1338.1,1337.8,32.08011418]
[1673433499448,0.066,1338.1,1337.8,32.08011418]
[1673433499761,0.23,1338.0,1337.9,25.63121142]
[1673433499987,14.066,1338.2,1337.9,28.87322463]
[1673433500129,14.066,1338.2,1338.0,1.339]
[1673433500505,3.79766064,1338.1,1338.0,10.17654901]
[1673433500806,3.79766064,1338.1,1338.0,22.48181871]
[1673433501437,4.02766064,1338.1,1338.0,22.48181871]
[1673433502596,4.02766064,1338.1,1338.0,15.00797871]
[1673433504970,4.02766064,1338.1,1338.0,7.53451871]
[1673433505902,4.02766064,1338.1,1338.0,0.06067871]
[1673433506117,8.51766064,1338.1,1337.8,16.12761654]
[1673433506493,0.23,1338.0,1337.8,23.60256654]
[1673433506801,0.23,1338.0,1337.8,8.65294654]
[1673433507386,4.02766064,1338.0,1337.8,8.65294654]
[1673433507851,8.51766064,1338.0,1337.8,31.07778654]
[1673433508023,8.58366064,1338.0,1337.8,31.07778654]
[1673433515324,8.58366064,1338.0,1337.8,33.85962583]
[1673433515722,8.58366064,1338.0,1337.8,33.85962554]
[1673433515901,8.58366064,1338.0,1337.8,39.07573404]
[1673433517306,8.58366064,1338.0,1337.9,1.85449643]
[1673433517511,8.58366064,1338.0,1337.9,16.80329643]
[1673433517708,8.58366064,1338.0,1337.9,24.33837514]
[1673433518527,0.296,1338.0,1337.9,24.33837514]
[1673433518743,4.556,1338.1,1337.9,36.77694926]
[1673433518958,4.49,1338.1,1338.0,1.85436972]
[1673433519301,4.49,1338.1,1338.0,24.27590536]
[1673433519515,4.49,1338.1,1338.0,24.33658407]
[1673433520113,4.72,1338.1,1338.0,24.33658407]
[1673433520427,4.72,1338.1,1338.0,9.38890407]
[1673433520894,5.83866819,1338.1,1338.0,9.38890407]
[1673433521056,5.90466819,1338.1,1338.0,9.38890407]
[1673433521945,4.786,1338.1,1338.0,9.38890407]
[1673433522136,4.72,1338.1,1338.0,9.38890407]
[1673433522329,5.83866819,1338.1,1338.0,9.38890407]
[1673433522541,4.786,1338.1,1338.0,9.38890407]
[1673433522756,4.72,1338.1,1338.0,16.86274407]
[1673433523319,9.63632883,1338.1,1338.0,9.38890407]
[1673433523531,10.26302883,1338.1,1338.0,1.91506407]
[1673433523686,9.70232883,1338.1,1338.0,1.85438536]
[1673433523895,9.70232883,1338.1,1337.9,16.12261821]
[1673433524216,0.23,1338.0,1337.9,23.59666821]
[1673433524430,0.23,1338.0,1337.9,25.45113481]
[1673433524877,8.51766064,1338.0,1337.9,25.45113481]
[1673433525069,8.58366064,1338.0,1337.9,25.45113481]
[1673433526674,8.58366064,1338.0,1337.9,17.97708481]
[1673433526855,8.58366064,1338.0,1337.9,9.38916531]
[1673433527048,22.58366064,1338.0,1337.9,9.38916531]
[1673433527258,23.70232883,1338.0,1337.9,9.38916531]
[1673433528243,23.70232883,1338.0,1337.9,16.86356531]
[1673433529573,23.70232883,1338.0,1337.9,17.38033195]
[1673433530721,22.58366064,1338.0,1337.9,17.38033195]
[1673433532137,22.58366064,1338.0,1337.9,24.85473195]
[1673433532313,22.58366064,1338.0,1337.9,27.63657095]
[1673433533143,22.58366064,1338.0,1337.9,28.75045045]
[1673433533621,22.58366064,1338.0,1337.9,25.96861145]
[1673433533948,20.60242824,1338.0,1337.9,33.62341339]
[1673433536313,20.83242824,1338.0,1337.9,33.62341339]
[1673433539963,14.066,1338.0,1337.9,33.62341339]
[1673433541433,14.066,1338.0,1337.9,26.14901339]
[1673433541646,14.066,1338.0,1337.9,23.36717439]
[1673433542271,14.296,1338.0,1337.9,23.36717439]
[1673433542462,14.296,1338.0,1337.9,26.14901339]
[1673433542811,14.296,1338.0,1337.9,33.62341339]
[1673433542977,14.296,1338.0,1337.9,26.14901339]
[1673433543325,14.296,1338.0,1337.9,33.62341339]
[1673433543923,0.296,1338.0,1337.9,33.62341339]
[1673433544133,0.23,1338.0,1337.9,33.62341339]
[1673433544349,0.23,1338.0,1337.9,35.29999814]
[1673433544559,0.23,1338.1,1337.9,35.29999814]
[1673433544747,4.02766064,1338.1,1338.0,1.8544666]
[1673433545150,4.02766064,1338.1,1338.0,24.2759866]
[1673433545304,4.02766064,1338.1,1338.0,24.33666531]
[1673433549953,5.14632883,1338.1,1338.0,24.33666531]
[1673433550109,5.21232883,1338.1,1338.0,24.33666531]
[1673433550448,5.21232883,1338.1,1338.0,16.86282531]
[1673433551795,5.21232883,1338.1,1338.0,16.86082531]
[1673433552004,5.21232883,1338.1,1338.0,16.86282531]
[1673433552790,5.21232883,1338.1,1338.0,24.33666531]
[1673433553096,4.09366064,1338.1,1338.0,24.33666531]
[1673433553277,4.02766064,1338.1,1338.0,25.45054481]
[1673433553488,0.23,1338.1,1338.0,28.98041462]
[1673433554047,20.37434514,1338.2,1338.0,31.76225362]
[1673433554256,24.17200578,1338.2,1338.0,29.90778702]
[1673433554621,20.37434514,1338.2,1338.0,29.90778702]
[1673433554882,19.81374514,1338.2,1338.0,29.90778702]
[1673433556572,21.49175701,1338.2,1338.0,28.79390752]
[1673433557943,15.18466819,1338.2,1338.1,1.85432383]
[1673433558136,15.41466819,1338.2,1338.1,16.80088383]
[1673433558319,15.41466819,1338.2,1338.1,16.86156254]
[1673433558532,15.41466819,1338.2,1338.1,24.33484254]
[1673433561090,15.41466819,1338.2,1338.1,22.48051871]
[1673433562151,15.41466819,1338.2,1338.1,24.33483932]
[1673433562370,15.41466819,1338.2,1338.1,15.00723871]
[1673433566133,15.41466819,1338.2,1338.1,16.86154373]
[1673433566994,15.41466819,1338.2,1338.1,0.06067871]
[1673433567203,15.41466819,1338.2,1338.0,7.53229871]
[1673433567357,15.41466819,1338.2,1338.0,7.53428871]
[1673433567768,19.21232883,1338.2,1338.0,15.00812871]
[1673433567889,0.23,1338.1,1338.0,22.48196871]
[1673433568100,0.23,1338.1,1338.0,24.33634624]
[1673433570768,0.23,1338.1,1338.0,25.45022574]
[1673433570977,0.23,1338.1,1338.0,29.45249735]
[1673433573917,0.23,1338.1,1338.0,31.1290821]
[1673433574135,0.23,1338.1,1338.0,29.45249735]
[1673433574293,15.18466819,1338.2,1338.0,31.1290821]
[1673433574502,15.18466819,1338.2,1338.1,1.85437753]
[1673433574720,15.41466819,1338.2,1338.1,16.80093753]
[1673433575032,15.41466819,1338.2,1338.1,16.86161624]
[1673433576768,15.41466819,1338.2,1338.1,9.38833624]
[1673433577498,15.41466819,1338.2,1338.1,1.91505624]
[1673433577674,15.41466819,1338.2,1338.1,1.85437753]
[1673433578078,15.41466819,1338.2,1338.1,9.32765753]
[1673433578291,15.41466819,1338.2,1338.1,9.38833624]
[1673433579297,15.41466819,1338.2,1338.1,16.86161624]
[1673433581447,15.41466819,1338.2,1338.1,9.38833624]
[1673433583230,15.41466819,1338.2,1338.1,16.86161624]
[1673433585171,15.41466819,1338.2,1338.1,1.91505624]
[1673433585405,15.41466819,1338.2,1338.1,1.85437753]
[1673433586521,15.41466819,1338.2,1338.1,9.32765753]
[1673433586738,15.41466819,1338.2,1338.1,9.38833624]
[1673433588419,15.41466819,1338.2,1338.1,16.86161624]
[1673433590186,15.41466819,1338.2,1338.1,9.38833624]
[1673433590529,17.09268006,1338.2,1338.1,9.38833624]
[1673433591899,15.41466819,1338.2,1338.1,9.38833624]
[1673433592263,15.41466819,1338.2,1338.1,16.86161624]
[1673433593132,0.066,1338.2,1338.1,36.12639308]
[1673433593344,5.67117709,1338.3,1338.1,35.01251358]
[1673433593528,5.67117709,1338.3,1338.2,16.79981753]
[1673433593747,5.90117709,1338.3,1338.2,16.86049624]
[1673433596647,5.90117709,1338.3,1338.2,9.38777624]
[1673433597226,5.90117709,1338.3,1338.2,16.86049624]
[1673433598278,5.90117709,1338.3,1338.2,20.15106672]
[1673433598484,5.90117709,1338.3,1338.2,12.67834672]
[1673433598696,5.90117709,1338.3,1338.2,9.38777624]
[1673433601635,5.90117709,1338.3,1338.2,1.91505624]
[1673433601879,5.90117709,1338.3,1338.2,1.85437753]
[1673433603488,5.90117709,1338.3,1338.2,9.32709753]
[1673433603636,5.90117709,1338.3,1338.2,9.38777624]
[1673433605210,4.786,1338.3,1338.2,9.38777624]
[1673433605420,4.722,1338.3,1338.2,9.38577624]
[1673433605656,4.72,1338.3,1338.2,9.38777624]
[1673433608017,4.72,1338.3,1338.2,7.53339871]
[1673433608836,5.83517709,1338.3,1338.2,7.53339871]
[1673433609061,5.90117709,1338.3,1338.2,7.53339871]
[1673433609858,5.90117709,1338.3,1338.2,0.06067871]
[1673433610063,5.90117709,1338.3,1338.1,28.25220266]
[1673433610279,5.90117709,1338.3,1338.2,7.47272]
[1673433610518,5.90117709,1338.3,1338.2,0.06067871]
[1673433610847,5.90117709,1338.3,1338.1,13.30622266]
[1673433611269,5.90117709,1338.3,1338.1,20.77950266]
[1673433611437,5.90117709,1338.3,1338.1,25.47094366]
[1673433611646,5.90117709,1338.3,1338.1,28.25278266]
[1673433617980,5.90117709,1338.3,1338.1,25.26205771]
[1673433618201,5.90117709,1338.3,1338.1,22.48021871]
[1673433618407,5.90117709,1338.3,1338.1,7.53365871]
[1673433620307,7.57918896,1338.3,1338.1,0.06067871]
[1673433620667,7.57918896,1338.3,1338.1,7.47325]
[1673433620850,7.57918896,1338.3,1338.1,7.53392871]
[1673433623308,0.23,1338.2,1338.1,7.53392871]
[1673433623558,0.23,1338.2,1338.1,1.91493842]
[1673433623784,0.23,1338.2,1338.1,1.85425971]
[1673433625983,0.23,1338.2,1338.1,9.32753971]
[1673433626194,0.23,1338.2,1338.1,9.38821842]
[1673433626407,1.34517709,1338.2,1338.1,1.91493842]
[1673433626595,0.23,1338.2,1338.1,1.85425971]
[1673433627924,0.23,1338.2,1338.1,9.32753971]
[1673433628252,1.34517709,1338.2,1338.1,9.38821842]
[1673433628462,0.23,1338.2,1338.1,9.38821842]
[1673433629543,1.34517709,1338.2,1338.1,9.38821842]
[1673433630976,11.3108496,1338.2,1338.1,0.06067871]
[1673433631192,11.3768496,1338.2,1338.0,17.09532335]
[1673433631441,9.69883773,1338.2,1338.0,17.09532335]
[1673433631657,9.69883773,1338.2,1338.0,19.87716235]
[1673433632711,3.79766064,1338.1,1338.0,11.43366235]
[1673433632879,4.02766064,1338.1,1338.0,17.98003762]
[1673433634044,4.02766064,1338.1,1338.0,16.86267298]
[1673433634359,4.02766064,1338.1,1338.0,17.98003762]
[1673433635425,4.02766064,1338.1,1338.0,16.86267298]
[1673433635614,4.02766064,1338.1,1338.0,24.33651298]
[1673433635826,4.02766064,1338.1,1338.0,28.23571662]
[1673433636802,4.0247183,1338.1,1338.0,19.64451198]
[1673433637024,4.0247183,1338.1,1338.0,16.86267298]
[1673433639275,4.0247183,1338.1,1338.0,25.45387762]
[1673433639484,4.0247183,1338.1,1338.0,28.23571662]
[1673433640222,4.0247183,1338.1,1338.0,12.17067198]
[1673433640475,4.0247183,1338.1,1338.0,0.06067871]
[1673433640476,29.63929434,1338.1,1338.0,0.06067871]
[1673433640638,40.72207326,1338.1,1337.9,0.51676664]
[1673433640848,10.19853977,1338.0,1337.9,0.51676664]
[1673433641093,12.76453977,1338.0,1337.9,0.51676664]
[1673433641288,15.19487407,1338.0,1337.9,0.51676664]
[1673433641494,13.5146275,1338.0,1337.9,0.51676664]
[1673433641716,14.4748598,1338.0,1337.9,0.51676664]
[1673433642132,14.6139633,1338.0,1337.9,0.51676664]
[1673433642341,14.4748598,1338.0,1337.9,0.51676664]
[1673433644109,13.35468067,1338.0,1337.9,0.51676664]
[1673433644790,14.4748598,1338.0,1337.9,0.51676664]
[1673433645379,10.85468067,1338.0,1337.9,0.51676664]
[1673433645900,13.35468067,1338.0,1337.9,0.51676664]
[1673433646999,10.85468067,1338.0,1337.9,0.51676664]
[1673433647943,13.35468067,1338.0,1337.9,0.51676664]
[1673433648320,12.60459294,1338.0,1337.9,0.51676664]
[1673433648942,10.10459294,1338.0,1337.9,0.51676664]
[1673433650767,10.85468067,1338.0,1337.9,0.51676664]
[1673433651769,10.29398067,1338.0,1337.9,0.51676664]
[1673433652562,9.54389294,1338.0,1337.9,0.51676664]
[1673433655765,12.04389294,1338.0,1337.9,0.51676664]
[1673433657414,13.16407207,1338.0,1337.9,0.51676664]
[1673433657642,12.04389294,1338.0,1337.9,0.51676664]
[1673433658069,13.16407207,1338.0,1337.9,0.51676664]
[1673433658285,12.04389294,1338.0,1337.9,0.51676664]
[1673433658540,12.04389294,1338.0,1337.9,0.51315637]